bitfinex/quotes_SOLUSD_20220101
["timestamp","ask_amount","ask_price","bid_price","bid_amount"]
[1641010905162,1.61375633,172.37,172.27,1.2736]
[1641010905364,2.37375633,172.37,172.14,1.3293]
[1641010905565,1.61375633,172.35,172.14,1.3293]
[1641010905764,1.61375633,172.35,172.14,7.37089568]
[1641010905995,6.32969457,172.34,172.17,29.0282]
[1641010906194,6.32969457,172.34,172.18,80.7723]
[1641010906396,7.08969457,172.34,172.19,78.5017]
[1641010906994,11.0368459,172.34,172.19,78.5017]
[1641010907394,1.2769,172.33,172.19,78.5017]
[1641010907595,8.7092,172.29,172.2,8.7089]
[1641010909094,8.7092,172.29,172.2,8.9689]
[1641010909296,8.7092,172.29,172.2,8.7089]
[1641010909999,8.7092,172.29,172.19,88.5322]
[1641010910397,8.7092,172.29,172.19,78.5017]
[1641010910597,8.7092,172.29,172.19,78.7617]
[1641010910798,8.7092,172.29,172.19,80.0367]
[1641010911998,8.7087,172.31,172.19,80.0367]
[1641010912398,8.7087,172.31,172.19,79.7767]
[1641010912598,8.9687,172.31,172.19,88.4862]
[1641010913498,8.9687,172.31,172.19,88.7462]
[1641010913698,8.9687,172.31,172.19,88.4862]
[1641010913901,9.4687,172.31,172.19,78.5017]
[1641010914502,1.61375633,172.3,172.19,78.5017]
[1641010914898,1.61375633,172.3,172.19,87.2111]
[1641010915099,0.26,172.31,172.19,87.4711]
[1641010915300,0.26,172.31,172.2,1.3057]
[1641010915498,106.68805633,172.33,172.2,1.5657]
[1641010915698,8.7089,172.3,172.2,1.5657]
[1641010916098,8.9689,172.3,172.2,10.275]
[1641010916299,8.7089,172.3,172.2,10.275]
[1641010916700,8.9689,172.3,172.2,10.275]
[1641010917100,8.7089,172.3,172.2,10.275]
[1641010917600,8.9689,172.3,172.2,10.275]
[1641010918500,11.302295,172.3,172.2,10.275]
[1641010918701,12.91605133,172.3,172.2,10.275]
[1641010923911,12.65605133,172.3,172.2,10.275]
[1641010924113,3.94715133,172.3,172.2,10.275]
[1641010925312,2.333395,172.3,172.2,10.275]
[1641010926913,9.5e-05,172.3,172.2,10.275]
[1641010927915,9.5e-05,172.3,172.2,11.70169368]
[1641010928516,1.61375633,172.38,172.2,11.70169368]
[1641010928719,1.61375633,172.38,172.2,13.00999368]
[1641010930719,1.61375633,172.38,172.2,11.5833]
[1641010931320,1.61375633,172.37,172.2,11.5833]
[1641010932519,1.2769,172.4,172.2,11.5833]
[1641010932520,1.61375633,172.38,172.2,11.5833]
[1641010932720,10.31845633,172.38,172.2,11.5833]
[1641010933123,1.61375633,172.37,172.2,11.5833]
[1641010934125,12.65185133,172.38,172.2,11.5833]
[1641010935124,1.61375633,172.37,172.2,11.5833]
[1641010935324,2.93305633,172.37,172.2,11.5833]
[1641010943559,78.60585633,172.37,172.2,11.5833]
[1641010944661,80.93925133,172.37,172.2,11.5833]
[1641010946862,1.61375633,172.36,172.2,11.5833]
[1641010948166,2.93655633,172.36,172.2,11.5833]
[1641010954272,1.3228,172.36,172.2,11.5833]
[1641010955576,2.93655633,172.36,172.2,11.5833]
[1641010956176,1.3228,172.36,172.2,11.5833]
[1641010957980,79.61995133,172.37,172.21,57.93]
[1641010958178,3.94715133,172.37,172.22,27.08230073]
[1641010958378,2.333395,172.37,172.29,33.049063]
[1641010958616,2.333395,172.37,172.29,38.382063]
[1641010959513,2.333395,172.37,172.29,14.0349]
[1641010959714,2.333395,172.37,172.33,8.7025]
[1641010960118,2.333395,172.37,172.33,8.9625]
[1641010961916,2.92835633,172.4,172.33,8.9625]
[1641010962215,1.3146,172.4,172.33,8.9625]
[1641010962416,1.3146,172.4,172.33,14.6635]
[1641010964018,3.647995,172.4,172.33,14.6635]
[1641010964517,3.647995,172.4,172.33,8.9625]
[1641010968725,3.647995,172.4,172.33,39.34310249]
[1641010970629,3.647995,172.4,172.33,8.9625]
[1641010974228,1.3146,172.4,172.33,8.9625]
[1641010975730,3.647995,172.4,172.33,8.9625]
[1641010977330,3.647995,172.4,172.33,8.7025]
[1641010978432,3.647995,172.4,172.28,29.0107]
[1641010978632,3.907995,172.4,172.26,1.2792]
[1641010979630,4.407995,172.4,172.26,1.2792]
[1641010979830,3.907995,172.4,172.26,1.2792]
[1641010980030,4.407995,172.4,172.26,1.2792]
[1641010980231,4.407995,172.4,172.26,1.5392]
[1641010980631,13.111595,172.4,172.29,8.7048]
[1641010981031,13.111595,172.4,172.22,89.86979368]
[1641010981032,13.111595,172.4,172.22,88.4431]
[1641010981236,74.76827404,172.39,172.22,88.4431]
[1641010981432,75.26827404,172.39,172.22,88.4431]
[1641010981632,75.52827404,172.39,172.22,88.4431]
[1641010981833,8.7061,172.35,172.26,8.7061]
[1641010982033,8.7061,172.35,172.23,29.69443134]
[1641010982034,1.2724,172.38,172.23,29.69443134]
[1641010982348,1.2724,172.38,172.22,79.9226]
[1641010982535,9.9044,172.38,172.15,1.42669368]
[1641010982734,1.31767404,172.37,172.16,73.7368]
[1641010982936,1.81767404,172.37,172.18,29.0271]
[1641010983136,8.40014639,172.37,172.18,29.0271]
[1641010983541,8.40014639,172.37,172.16,72.4946]
[1641010983736,2.54157404,172.36,172.14,74.1906]
[1641010983934,3.04157404,172.36,172.12,29.0356]
[1641010984135,1.31767404,172.35,172.12,29.0356]
[1641010984534,2.07767404,172.35,172.13,27.82083041]
[1641010984967,8.7108,172.27,172.17,8.7106]
[1641010985366,8.9708,172.27,172.17,8.7106]
[1641010985968,8.7108,172.27,172.17,8.7106]
[1641010986367,8.7108,172.27,172.17,8.9706]
[1641010987566,10.32365633,172.28,172.17,8.9706]
[1641010988568,10.58365633,172.28,172.17,8.9706]
[1641010990367,11.08365633,172.28,172.17,8.9706]
[1641010990569,8.7109,172.26,172.17,8.9706]
[1641010991269,1.61375633,172.27,172.17,8.9706]
[1641010991471,1.87375633,172.27,172.17,8.9706]
[1641010992273,0.26,172.27,172.17,8.9706]
[1641010992470,2.37375633,172.29,172.17,8.9706]
[1641010992670,8.7104,172.27,172.17,8.9706]
[1641010993069,8.9704,172.27,172.17,8.9706]
[1641010994173,8.9704,172.27,172.15,8.7112]
[1641010994373,9.4704,172.27,172.15,8.7112]
[1641010994573,9.4704,172.27,172.15,8.9712]
[1641010994972,9.4704,172.27,172.15,0.26]
[1641010995373,1.61375633,172.26,172.13,8.7123]
[1641010995573,8.7121,172.24,172.13,8.9723]
[1641010995772,1.87375633,172.26,172.13,8.9723]
[1641010995974,1.61375633,172.26,172.13,8.9723]
[1641010996376,1.87375633,172.26,172.13,8.9723]
[1641010996779,0.26,172.26,172.13,8.9723]
[1641010996974,2.37375633,172.27,172.13,8.9723]
[1641010997175,8.7117,172.25,172.13,8.9723]
[1641010997375,2.37375633,172.27,172.13,8.7123]
[1641010998176,0.76,172.27,172.13,8.7123]
[1641010998377,8.7119,172.24,172.13,8.7123]
[1641010998878,29.0401,172.28,172.13,8.9723]
[1641010999079,1.2758,172.27,172.13,8.9723]
[1641010999480,1.5358,172.27,172.13,8.9723]
[1641010999680,8.7118,172.25,172.13,8.9723]
[1641011000880,8.7109,172.26,172.13,8.9723]
[1641011001084,8.9709,172.26,172.13,8.9723]
[1641011001684,8.9709,172.26,172.16,8.7111]
[1641011001882,9.4709,172.26,172.11,72.8885]
[1641011002183,9.4709,172.26,172.06,77.659]
[1641011002384,1.3408,172.25,172.07,76.1445]
[1641011002583,1.6008,172.25,172.09,8.7142]
[1641011002883,1.6008,172.25,172.06,29.41774365]
[1641011002884,29.0508,172.22,172.06,29.41774365]
[1641011003085,29.3108,172.22,172.06,29.41774365]
[1641011003283,29.8108,172.22,172.06,29.41774365]
[1641011003805,8.716,172.17,172.06,38.13364365]
[1641011004005,8.976,172.17,172.06,38.13364365]
[1641011004209,78.3335,172.21,172.06,38.13364365]
[1641011004407,79.0935,172.21,172.06,38.13364365]
[1641011005005,78.8335,172.21,172.06,38.39364365]
[1641011005206,79.94725633,172.21,172.06,44.40464365]
[1641011005407,1.61375633,172.21,172.07,1.42669368]
[1641011005608,1.61375633,172.21,172.07,73.91579368]
[1641011006212,1.61375633,172.25,172.08,1.341]
[1641011006412,10.32515633,172.25,172.1,29.0386]
[1641011006611,10.32515633,172.25,172.1,6.9]
[1641011006815,8.7114,172.25,172.16,8.7113]
[1641011007113,8.7114,172.25,172.16,8.9713]
[1641011008115,8.7114,172.25,172.14,76.6211]
[1641011008116,8.7114,172.25,172.15,8.7118]
[1641011008314,9.4714,172.25,172.13,29.26933581]
[1641011008913,8.7114,172.25,172.13,29.26933581]
[1641011009114,2.87915633,172.26,172.13,29.26933581]
[1641011009312,2.87915633,172.26,172.17,8.7107]
[1641011009515,3.13915633,172.26,172.17,8.9707]
[1641011009912,1.5254,172.26,172.17,8.9707]
[1641011010113,0.26,172.26,172.17,8.9707]
[1641011010514,8.9709,172.27,172.17,8.9707]
[1641011011115,8.7109,172.27,172.17,8.9707]
[1641011011316,1.61375633,172.28,172.17,8.9707]
[1641011012618,86.61815633,172.29,172.17,8.9707]
[1641011012818,86.87815633,172.29,172.17,8.9707]
[1641011015823,87.37815633,172.29,172.17,8.9707]
[1641011016024,86.87815633,172.29,172.17,8.9707]
[1641011016726,87.37815633,172.29,172.17,8.9707]
[1641011017326,86.87815633,172.29,172.17,8.9707]
[1641011018325,86.87815633,172.29,172.18,1.2469]
[1641011018526,86.87815633,172.29,172.19,8.7095]
[1641011018736,11.81065633,172.29,172.19,8.7095]
[1641011018926,11.81065633,172.29,172.19,8.9695]
[1641011023531,12.31065633,172.29,172.19,8.9695]
[1641011023732,11.81065633,172.29,172.19,8.9695]
[1641011023934,12.31065633,172.29,172.19,8.9695]
[1641011024333,11.81065633,172.29,172.19,8.9695]
[1641011025837,12.31065633,172.29,172.19,8.9695]
[1641011026036,11.81065633,172.29,172.19,8.9695]
[1641011027640,14.14405133,172.29,172.19,8.9695]
[1641011027839,1.61375633,172.28,172.19,8.9695]
[1641011028038,10.32345633,172.28,172.19,8.9695]
[1641011029640,8.7097,172.28,172.19,8.9695]
[1641011030965,8.9697,172.28,172.19,8.9695]
[1641011031366,8.7097,172.28,172.19,8.9695]
[1641011031966,8.9697,172.28,172.19,8.9695]
[1641011032565,8.9697,172.28,172.18,9.9572]
[1641011032767,8.9697,172.28,172.16,72.9627]
[1641011032966,9.4697,172.28,172.16,72.9627]
[1641011033168,9.4697,172.28,172.14,76.2904]
[1641011033367,1.31767404,172.27,172.14,76.2904]
[1641011033670,8.7126,172.23,172.14,85.0028]
[1641011033868,9.2126,172.23,172.14,85.0028]
[1641011034069,8.9726,172.23,172.14,85.0028]
[1641011034669,9.4726,172.23,172.14,8.7124]
[1641011034869,1.31767404,172.22,172.02,0.301868]
[1641011035071,8.7155,172.17,172.02,148.033468]
[1641011035469,8.7155,172.17,172.03,30.45458226]
[1641011035868,8.9755,172.17,172.03,30.45458226]
[1641011036069,8.9755,172.17,172.03,30.71458226]
[1641011036368,8.9755,172.17,172.08,8.7156]
[1641011036569,8.9755,172.17,172.08,8.9756]
[1641011037168,8.9755,172.17,172.08,8.7156]
[1641011037368,8.9755,172.17,172.07,8.716]
[1641011037369,9.4755,172.17,172.07,8.716]
[1641011037974,9.4755,172.17,172.07,8.976]
[1641011038168,8.9755,172.17,172.07,8.976]
[1641011038668,1.61375633,172.19,172.07,8.976]
[1641011038869,2.11375633,172.19,172.07,8.976]
[1641011039071,0.26,172.19,172.07,8.976]
[1641011039469,2.333395,172.19,172.09,8.7148]
[1641011039670,8.7148,172.18,172.1,31.57709764]
[1641011040071,8.9748,172.18,172.1,31.83709764]
[1641011041371,0.26,172.18,172.1,40.55179764]
[1641011041573,2.333395,172.19,172.1,40.55179764]
[1641011041771,2.333395,172.19,172.1,47.75079764]
[1641011043472,2.333395,172.19,172.1,49.06819764]
[1641011045976,2.333395,172.19,172.1,41.60919764]
[1641011046377,2.333395,172.19,172.1,10.0321]
[1641011046778,2.593395,172.19,172.1,10.0321]
[1641011046978,2.593395,172.19,172.1,8.7147]
[1641011047381,2.593395,172.19,172.1,8.9747]
[1641011048682,11.307595,172.19,172.1,8.9747]
[1641011054892,11.807595,172.19,172.1,8.9747]
[1641011055294,11.307595,172.19,172.1,8.9747]
[1641011058620,2.333395,172.19,172.1,8.9747]
[1641011072344,2.333395,172.19,172.11,1.2731]
[1641011072544,2.333395,172.19,172.15,8.712]
[1641011072945,2.333395,172.19,172.15,8.972]
[1641011074777,2.333395,172.19,172.15,8.712]
[1641011075574,2.333395,172.19,172.14,8.7129]
[1641011079986,2.333395,172.19,172.13,8.7135]
[1641011080279,2.593395,172.19,172.11,1.5331]
[1641011080880,2.593395,172.19,172.06,29.0479]
[1641011080881,3.093395,172.19,172.06,29.0479]
[1641011081078,3.093395,172.19,172.07,8.7164]
[1641011081380,11.807795,172.19,172.04,1.2766]
[1641011082181,1.61375633,172.17,172.04,0.26]
[1641011082380,8.7175,172.13,172.05,8.7174]
[1641011082581,8.9775,172.13,172.05,8.9774]
[1641011083183,8.7175,172.13,172.05,8.9774]
[1641011083385,1.61375633,172.16,172.05,8.9774]
[1641011083583,1.3006,172.16,172.05,8.9774]
[1641011083782,1.8006,172.16,172.05,8.9774]
[1641011084581,8.7167,172.14,172.05,8.9774]
[1641011084783,1.5606,172.16,172.05,8.9774]
[1641011086282,1.5606,172.16,172.09,8.7156]
[1641011086482,0.26,172.16,172.09,8.7156]
[1641011086683,8.7156,172.17,172.09,8.9756]
[1641011086886,0.26,172.17,172.1,30.98241233]
[1641011087081,0.26,172.17,172.1,31.24241233]
[1641011087282,8.7148,172.18,172.1,31.24241233]
[1641011087683,8.7148,172.18,172.1,0.26]
[1641011088085,8.7148,172.18,172.07,81.4492]
[1641011088686,8.7148,172.18,172.11,8.7144]
[1641011088887,8.9748,172.18,172.11,8.7144]
[1641011089186,8.9748,172.18,172.11,8.9744]
[1641011090086,8.9748,172.18,172.11,8.7144]
[1641011090684,8.9748,172.18,172.1,8.7152]
[1641011092889,9.4748,172.18,172.08,8.7162]
[1641011093091,9.4748,172.18,172.0,78.8359]
[1641011093891,1.26,172.17,172.01,29.01025856]
[1641011094093,8.7157,172.16,172.08,8.7157]
[1641011094290,8.7157,172.16,172.08,31.27759167]
[1641011094491,8.9757,172.16,172.08,31.53759167]
[1641011095192,0.26,172.16,172.08,31.53759167]
[1641011095493,8.7151,172.18,172.09,1.2284]
[1641011095694,2.333395,172.19,172.09,8.0634]
[1641011095894,2.333395,172.19,172.09,8.3234]
[1641011096695,2.333395,172.19,172.13,8.7134]
[1641011097397,2.333395,172.19,172.09,78.3437]
[1641011097598,2.333395,172.19,172.05,73.5886]
[1641011097797,1.241,172.18,172.06,1.3509]
[1641011098000,1.741,172.18,172.06,1.3509]
[1641011098399,1.241,172.18,172.06,1.3509]
[1641011098599,1.741,172.18,172.06,28.32689825]
[1641011098797,2.001,172.18,172.06,28.32689825]
[1641011098999,2.001,172.18,172.06,28.58689825]
[1641011099598,8.7163,172.15,172.06,37.30359825]
[1641011100000,8.9763,172.15,172.06,37.30359825]
[1641011100200,8.9763,172.15,172.06,8.9767]
[1641011100398,8.9763,172.15,172.05,73.5886]
[1641011100602,8.9763,172.15,172.05,73.8486]
[1641011101033,9.4763,172.15,172.05,0.26]
[1641011101431,8.9763,172.15,172.03,9.015406]
[1641011102430,8.9763,172.15,172.04,1.3327]
[1641011102638,0.26,172.15,172.04,1.3327]
[1641011102833,0.26,172.15,172.04,1.5927]
[1641011103032,84.41875633,172.17,172.04,1.5927]
[1641011103231,82.805,172.17,172.04,1.5927]
[1641011104130,8.7164,172.15,172.06,8.7161]
[1641011104331,1.2256,172.16,172.06,8.7161]
[1641011104533,75.44315633,172.17,172.06,8.9761]
[1641011104733,76.73705633,172.17,172.07,1.2226]
[1641011105136,75.1233,172.17,172.07,1.4826]
[1641011105533,74.1233,172.17,172.07,1.4826]
[1641011105734,82.8385,172.17,172.08,8.715]
[1641011105935,10.0091,172.17,172.08,8.715]
[1641011106135,10.0091,172.17,172.08,8.975]
[1641011106838,10.0091,172.17,172.08,8.475]
[1641011108638,10.0091,172.17,172.09,23.36976723]
[1641011109037,10.0091,172.17,172.09,23.62976723]
[1641011109437,8.7152,172.17,172.09,23.62976723]
[1641011109640,2.333395,172.19,172.09,33.66646723]
[1641011110038,2.593395,172.19,172.09,10.2967]
[1641011110241,2.593395,172.19,172.09,1.5821]
[1641011111238,8.715,172.18,172.09,1.5821]
[1641011111638,8.975,172.18,172.09,1.5821]
[1641011112639,8.975,172.18,172.08,8.7151]
[1641011112840,9.475,172.18,172.03,0.298206]
[1641011113043,9.475,172.18,172.05,1.3148]
[1641011113439,1.61375633,172.17,172.05,1.5748]
[1641011113640,2.87995633,172.17,172.05,1.5748]
[1641011113841,8.7173,172.13,172.05,1.5748]
[1641011114042,8.9773,172.13,172.05,1.5748]
[1641011114441,8.7173,172.13,172.05,1.5748]
[1641011114645,1.61375633,172.17,172.05,1.5748]
[1641011114845,1.61375633,172.17,172.05,15.7115]
[1641011115043,1.61375633,172.17,172.06,1.42669368]
[1641011115447,1.61375633,172.17,172.06,1.68669368]
[1641011115646,1.61375633,172.17,172.1,29.0399]
[1641011115846,29.0413,172.27,172.1,29.0399]
[1641011115847,1.63300276,172.23,172.19,1.61375633]
[1641011116146,1.63300276,172.23,172.2,31.93109004]
[1641011116346,1.63300276,172.23,172.21,0.50197092]
[1641011116747,1.63300276,172.26,172.21,0.50197092]
[1641011117747,1.63300276,172.28,172.21,9.21067092]
[1641011118049,1.63300276,172.28,172.21,9.47067092]
[1641011118447,1.63300276,172.29,172.21,10.73147092]
[1641011119049,1.63300276,172.3,172.21,10.73147092]
[1641011120349,1.63300276,172.31,172.21,10.73147092]
[1641011121449,1.63300276,172.32,172.21,10.73147092]
[1641011122249,2.39300276,172.32,172.21,10.73147092]
[1641011122449,1.89300276,172.32,172.21,10.73147092]
[1641011122649,1.63300276,172.31,172.21,10.73147092]
[1641011123048,1.89300276,172.31,172.21,10.73147092]
[1641011123649,1.63300276,172.3,172.21,10.73147092]
[1641011124751,1.89300276,172.3,172.21,10.47147092]
[1641011125352,1.63300276,172.28,172.21,10.47147092]
[1641011125552,1.89300276,172.28,172.21,10.47147092]
[1641011127055,1.63300276,172.28,172.21,10.73147092]
[1641011128657,1.63300276,172.29,172.21,10.73147092]
[1641011129059,1.63300276,172.28,172.21,10.47147092]
[1641011129257,1.13300276,172.28,172.21,0.50197092]
[1641011129458,1.39300276,172.28,172.21,0.50197092]
[1641011129867,10.10280276,172.28,172.21,0.50197092]
[1641011130762,1.39300276,172.28,172.21,0.50197092]
[1641011132671,10.10290276,172.28,172.21,0.50197092]
[1641011132871,8.9699,172.28,172.21,0.50197092]
[1641011133476,8.9699,172.28,172.19,11.89455633]
[1641011141997,8.9699,172.28,172.19,1.61375633]
[1641011142198,9.4699,172.28,172.19,1.61375633]
[1641011142696,10.78757404,172.28,172.19,1.61375633]
[1641011143097,16.33849777,172.28,172.19,1.61375633]
[1641011143502,3.28543435,172.26,172.19,1.61375633]
[1641011143797,8.7138,172.23,172.19,1.61375633]
[1641011143998,8.9738,172.23,172.19,1.61375633]
[1641011147198,8.7118,172.24,172.19,1.61375633]
[1641011147699,8.9718,172.24,172.19,1.61375633]
[1641011148800,8.7118,172.24,172.19,1.61375633]
[1641011149002,8.7112,172.25,172.19,1.87375633]
[1641011149204,3.78543435,172.28,172.19,7.98075633]
[1641011149400,3.28543435,172.28,172.19,7.98075633]
[1641011149601,3.54543435,172.28,172.19,7.98075633]
[1641011150302,8.7107,172.26,172.19,7.98075633]
[1641011150502,8.9707,172.26,172.19,7.72075633]
[1641011150706,8.9707,172.26,172.19,1.61375633]
[1641011151102,9.4707,172.26,172.19,1.61375633]
[1641011151304,8.9707,172.26,172.19,1.61375633]
[1641011151503,9.4707,172.26,172.19,1.61375633]
[1641011151903,8.9707,172.26,172.19,1.61375633]
[1641011156014,8.9707,172.26,172.19,1.87375633]
[1641011156213,8.7107,172.26,172.19,1.87375633]
[1641011157013,8.9707,172.26,172.19,1.87375633]
[1641011157513,8.7107,172.26,172.19,1.87375633]
[1641011159317,8.7102,172.27,172.19,8.06075633]
[1641011159518,8.9702,172.27,172.19,8.06075633]
[1641011160718,8.9702,172.27,172.19,1.87375633]
[1641011161920,8.9702,172.27,172.19,3.16635633]
[1641011163628,8.9702,172.27,172.19,11.87645633]
[1641011166421,0.26,172.27,172.19,11.87645633]
[1641011166623,8.9696,172.28,172.19,11.87645633]
[1641011167523,8.9696,172.28,172.19,11.61645633]
[1641011167724,9.4696,172.28,172.19,1.61375633]
[1641011167925,10.78727404,172.28,172.19,1.61375633]
[1641011168323,9.8891472,172.27,172.19,1.61375633]
[1641011168546,8.7126,172.23,172.19,1.61375633]
[1641011169046,8.9726,172.23,172.19,1.61375633]
[1641011169650,9.4726,172.23,172.19,1.61375633]
[1641011172155,8.7126,172.23,172.19,1.61375633]
[1641011172552,8.7117,172.24,172.19,1.61375633]
[1641011173353,9.2117,172.24,172.19,1.61375633]
[1641011173753,8.7117,172.24,172.19,1.61375633]
[1641011174453,0.5,172.24,172.19,1.61375633]
[1641011174655,8.7112,172.25,172.19,1.87375633]
[1641011175453,11.044595,172.25,172.19,1.87375633]
[1641011175853,11.544595,172.25,172.19,1.87375633]
[1641011177458,11.804595,172.25,172.19,1.61375633]
[1641011178057,13.12226904,172.25,172.19,1.61375633]
[1641011178656,8.7151,172.22,172.19,1.61375633]
[1641011178857,9.2151,172.22,172.19,1.61375633]
[1641011179055,5.56235857,172.21,172.19,1.61375633]
[1641011179455,6.32235857,172.21,172.19,1.61375633]
[1641011179656,8.7152,172.2,172.19,1.61375633]
[1641011179859,9.2152,172.2,172.19,1.61375633]
[1641011180059,9.4752,172.2,172.19,1.61375633]
[1641011180960,9.2152,172.2,172.19,1.61375633]
[1641011182060,9.2152,172.2,172.09,1.2979]
[1641011182462,9.4752,172.2,172.09,1.2979]
[1641011182861,10.7974,172.2,172.08,151.7667]
[1641011183360,10.7974,172.2,172.08,152.0267]
[1641011183761,10.7974,172.2,172.08,0.26]
[1641011183961,10.7974,172.2,172.06,33.29813535]
[1641011186563,10.7974,172.2,172.06,42.01413535]
[1641011187365,8.7152,172.2,172.06,42.01413535]
[1641011187568,3.28543435,172.21,172.06,42.01413535]
[1641011187764,8.7131,172.22,172.06,46.98013535]
[1641011188366,9.2131,172.22,172.06,46.98013535]
[1641011188665,9.4731,172.22,172.06,46.98013535]
[1641011188865,9.4731,172.22,172.06,42.01413535]
[1641011189665,12.75853435,172.22,172.06,42.01413535]
[1641011189866,8.7143,172.19,172.06,42.01413535]
[1641011190274,9.2143,172.19,172.06,42.01413535]
[1641011190467,8.7143,172.19,172.06,42.01413535]
[1641011190969,8.7131,172.21,172.06,42.01413535]
[1641011191168,3.28543435,172.23,172.06,42.01413535]
[1641011191369,2.333395,172.19,172.06,42.01413535]
[1641011200985,2.333395,172.19,172.06,43.44082903]
[1641011201387,3.28543435,172.25,172.06,43.44082903]
[1641011202184,2.4977,172.27,172.06,43.44082903]
[1641011202408,3.2577,172.27,172.06,43.44082903]
[1641011202706,8.7111,172.25,172.06,43.44082903]
[1641011202907,9.2111,172.25,172.06,43.44082903]
[1641011203511,9.2111,172.25,172.06,52.44022661]
[1641011205011,8.7111,172.25,172.06,52.44022661]
[1641011205411,9.2111,172.25,172.06,61.82286938]
[1641011207813,8.7111,172.25,172.06,61.82286938]
[1641011208414,9.2111,172.25,172.06,61.82286938]
[1641011210418,8.7111,172.25,172.06,61.82286938]
[1641011210721,2.333395,172.27,172.06,69.65186938]
[1641011210917,2.333395,172.27,172.07,5.280556]
[1641011211119,2.333395,172.27,172.17,8.7085]
[1641011211316,2.333395,172.27,172.18,22.42032509]
[1641011211516,2.333395,172.27,172.18,22.68032509]
[1641011211918,2.333395,172.27,172.18,0.26]
[1641011212115,2.593395,172.27,172.15,29.0317]
[1641011212916,2.333395,172.27,172.15,53.99388757]
[1641011213117,82.324435,172.33,172.15,53.99388757]
[1641011213319,83.084435,172.33,172.16,1.3367]
[1641011213517,8.7102,172.27,172.18,8.71]
[1641011213920,8.9702,172.27,172.18,8.97]
[1641011214418,11.303595,172.27,172.18,8.97]
[1641011214920,19.087595,172.27,172.16,1.3367]
[1641011215121,19.087595,172.27,172.14,76.5542]
[1641011215322,20.40203,172.27,172.14,76.5542]
[1641011215928,23.68746435,172.27,172.14,76.5542]
[1641011216425,23.68746435,172.27,172.11,39.01842832]
[1641011216625,8.7136,172.21,172.11,39.27842832]
[1641011217026,8.9736,172.21,172.11,39.27842832]
[1641011217227,0.26,172.21,172.11,39.27842832]
[1641011217427,151.9685,172.25,172.11,39.27842832]
[1641011217627,151.7285,172.25,172.11,39.27842832]
[1641011218130,8.7127,172.22,172.13,8.7125]
[1641011218530,8.9727,172.22,172.13,8.9725]
[1641011219931,0.26,172.22,172.13,8.9725]
[1641011220431,8.9722,172.23,172.13,8.9725]
[1641011220631,8.7122,172.23,172.13,8.9725]
[1641011221234,160.1801,172.25,172.13,8.9725]
[1641011222033,160.4401,172.25,172.15,8.7117]
[1641011222434,160.4401,172.25,172.15,8.9717]
[1641011224635,160.9401,172.25,172.15,8.7117]
[1641011224834,160.9401,172.25,172.14,9.9838]
[1641011225036,160.9401,172.25,172.14,10.2438]
[1641011225835,163.273495,172.25,172.14,10.2438]
[1641011228443,162.513495,172.25,172.14,10.2438]
[1641011228842,153.801895,172.25,172.14,10.2438]
[1641011231643,154.061895,172.25,172.14,10.2438]
[1641011234149,153.801895,172.25,172.14,10.2438]
[1641011234550,154.061895,172.25,172.14,10.2438]
[1641011235053,153.801895,172.25,172.14,10.2438]
[1641011235852,151.4685,172.25,172.14,10.2438]
[1641011236472,153.801895,172.25,172.14,10.2438]
[1641011240779,153.801895,172.25,172.14,9.9838]
[1641011241074,155.87633,172.25,172.12,74.8438]
[1641011241274,164.58743,172.25,172.12,74.8438]
[1641011241974,164.58743,172.25,172.07,6.0629691]
[1641011242176,164.58743,172.25,172.08,1.33]
[1641011242576,167.87286435,172.25,172.08,1.33]
[1641011242777,1.2581,172.24,172.08,1.33]
[1641011242976,8.7148,172.18,172.08,1.33]
[1641011243477,8.9748,172.18,172.09,78.3973]
[1641011245982,9.4748,172.18,172.09,78.3973]
[1641011247889,8.9748,172.18,172.09,78.3973]
[1641011248889,9.4748,172.18,172.09,78.3973]